[Event "2. Itzehoer Schach Open"]
[Site "Itzehoe, Germany"]
[Date "2023.04.30"]
[Round "3.35"]
[White "Offenbaecher, Julius"]
[Black "Stehle, Fabian"]
[Result "0-1"]
[TimeControl "90 min / 40 Züge + 30 min + 30 Sek pro Zug"]
[WhiteElo "1128"]
[BlackElo "1569"]

1. e4 {[%clk 01:30:50]} {[%emt 00:00:05]} c5 {[%clk 01:30:34]} {[%emt
00:00:31]} 2. Nc3 {[%clk 01:31:11]} {[%emt 00:00:08]} Nc6 {[%clk 01:30:31]}
{[%emt 00:00:33]} 3. Bb5 {[%clk 01:31:12]} {[%emt 00:00:26]} Nd4 {[%clk
01:30:34]} {[%emt 00:00:31]} 4. Nf3 {[%clk 01:31:33]} {[%emt 00:00:08]} g6
{[%clk 01:27:52]} {[%emt 00:03:13]} 5. Nxd4 {[%clk 01:29:21]} {[%emt 00:02:42]}
cxd4 {[%clk 01:28:15]} {[%emt 00:00:07]} 6. Ne2 {[%clk 01:29:39]} {[%emt
00:00:12]} Bg7 {[%clk 01:28:31]} {[%emt 00:00:15]} 7. Bd3 {[%clk 01:27:05]}
{[%emt 00:03:03]} e5 {[%clk 01:25:36]} {[%emt 00:03:25]} 8. b3 {[%clk
01:26:23]} {[%emt 00:01:13]} Ne7 {[%clk 01:25:39]} {[%emt 00:00:27]} 9. Bb2
{[%clk 01:26:22]} {[%emt 00:00:31]} O-O {[%clk 01:24:26]} {[%emt 00:01:43]} 10.
O-O {[%clk 01:25:34]} {[%emt 00:01:18]} d5 {[%clk 01:23:12]} {[%emt 00:01:43]}
11. h3 {[%clk 01:22:44]} {[%emt 00:03:20]} Kh8 {[%clk 01:12:14]} {[%emt
00:11:28]} 12. f4 {[%clk 01:11:59]} {[%emt 00:11:15]} f5 {[%clk 01:07:28]}
{[%emt 00:05:16]} 13. exd5 {[%clk 01:08:40]} {[%emt 00:03:49]} Qxd5 {[%clk
01:06:57]} {[%emt 00:01:01]} 14. Bc4 {[%clk 01:07:11]} {[%emt 00:01:59]} Qc5
{[%clk 01:07:06]} {[%emt 00:00:21]} 15. Kh1 {[%clk 00:55:51]} {[%emt 00:11:50]}
b5 {[%clk 01:06:25]} {[%emt 00:01:11]} 16. b4 {[%clk 00:56:04]} {[%emt
00:00:17]} Qxc4 {[%clk 01:06:25]} {[%emt 00:00:31]} 17. a4 {[%clk 00:52:34]}
{[%emt 00:04:01]} Qxb4 {[%clk 01:05:00]} {[%emt 00:01:54]} 18. Ba3 {[%clk
00:51:44]} {[%emt 00:01:20]} Qc4 {[%clk 01:01:54]} {[%emt 00:03:35]} 19. Bxe7
{[%clk 00:51:45]} {[%emt 00:00:29]} Re8 {[%clk 01:01:46]} {[%emt 00:00:38]} 20.
Bd6 {[%clk 00:48:28]} {[%emt 00:03:46]} Bb7 {[%clk 01:00:16]} {[%emt 00:02:00]}
21. fxe5 {[%clk 00:45:03]} {[%emt 00:03:55]} Bxe5 {[%clk 00:56:08]} {[%emt
00:04:38]} 22. Bxe5+ {[%clk 00:45:27]} {[%emt 00:00:06]} Rxe5 {[%clk 00:56:19]}
{[%emt 00:00:20]} 23. Rf2 {[%clk 00:43:54]} {[%emt 00:02:02]} Rae8 {[%clk
00:56:14]} {[%emt 00:00:35]} 24. d3 {[%clk 00:42:10]} {[%emt 00:02:14]} Qd5
{[%clk 00:51:35]} {[%emt 00:05:09]} 25. axb5 {[%clk 00:41:21]} {[%emt
00:01:20]} Re3 {[%clk 00:37:57]} {[%emt 00:14:08]} 26. Nf4 {[%clk 00:40:55]}
{[%emt 00:00:55]} Qxb5 {[%clk 00:34:14]} {[%emt 00:04:13]} 27. Re2 {[%clk
00:37:28]} {[%emt 00:03:57]} g5 {[%clk 00:31:58]} {[%emt 00:02:47]} 28. Rxe3
{[%clk 00:33:00]} {[%emt 00:04:58]} Rxe3 {[%clk 00:26:37]} {[%emt 00:05:50]} 29.
Ne2 {[%clk 00:32:58]} {[%emt 00:00:32]} Rxh3+ {[%clk 00:27:01]} {[%emt
00:00:07]} 30. Kg1 {[%clk 00:33:23]} {[%emt 00:00:04]} Qd5 {[%clk 00:24:12]}
{[%emt 00:03:19]} 31. Qf1 {[%clk 00:32:40]} {[%emt 00:01:13]} Re3 {[%clk
00:24:16]} {[%emt 00:00:26]} 32. Qf2 {[%clk 00:28:39]} {[%emt 00:04:30]} Qxg2+
{[%clk 00:23:02]} {[%emt 00:01:44]} 33. Qxg2 {[%clk 00:28:58]} {[%emt
00:00:12]} Bxg2 {[%clk 00:23:26]} {[%emt 00:00:06]} 34. Kf2 {[%clk 00:29:05]}
{[%emt 00:00:23]} Re7 {[%clk 00:17:43]} {[%emt 00:06:13]} 35. Nxd4 {[%clk
00:29:18]} {[%emt 00:00:16]} Bd5 {[%clk 00:17:21]} {[%emt 00:00:52]} 36. Nxf5
{[%clk 00:28:56]} {[%emt 00:00:51]} Rf7 {[%clk 00:17:44]} {[%emt 00:00:07]} 37.
Ra5 {[%clk 00:28:27]} {[%emt 00:00:59]} Rxf5+ {[%clk 00:17:45]} {[%emt
00:00:29]} 38. Ke3 {[%clk 00:28:52]} {[%emt 00:00:05]} Be6 {[%clk 00:18:01]}
{[%emt 00:00:15]} 39. Rxa7 {[%clk 00:28:58]} {[%emt 00:00:24]} Rf4 {[%clk
00:16:06]} {[%emt 00:02:25]} 40. Ra5 {[%clk 00:28:39]} {[%emt 00:00:49]} h6
{[%clk 00:15:09]} {[%emt 00:01:27]} 41. Ra6 {[%clk 00:29:03]} {[%emt 00:00:07]}
Rf6 {[%clk 00:15:23]} {[%emt 00:00:15]} 42. d4 {[%clk 00:28:50]} {[%emt
00:00:43]} Kg7 {[%clk 00:15:31]} {[%emt 00:00:22]} 43. Ke4 {[%clk 00:28:59]}
{[%emt 00:00:22]} 0-1

[Event "2. Itzehoer Schach Open"]
[Site "Itzehoe, Germany"]
[Date "2023.04.30"]
[Round "3.25"]
[White "Oblender, Rudi"]
[Black "Recklies, Volker"]
[Result "1/2-1/2"]
[TimeControl "90 min / 40 Züge + 30 min + 30 Sek pro Zug"]
[WhiteElo "1391"]
[BlackElo "1701"]

1. e4 {[%clk 01:30:58]} {[%emt 00:00:01]} c6 {[%clk 01:30:53]} {[%emt
00:00:07]} 2. Nf3 {[%clk 01:29:42]} {[%emt 00:01:47]} d5 {[%clk 01:31:15]}
{[%emt 00:00:08]} 3. exd5 {[%clk 01:30:07]} {[%emt 00:00:05]} cxd5 {[%clk
01:31:42]} {[%emt 00:00:02]} 4. d4 {[%clk 01:30:31]} {[%emt 00:00:06]} Nc6
{[%clk 01:31:34]} {[%emt 00:00:38]} 5. c3 {[%clk 01:22:39]} {[%emt 00:08:22]}
Nf6 {[%clk 01:30:58]} {[%emt 00:01:06]} 6. Nbd2 {[%clk 01:16:30]} {[%emt
00:06:40]} g6 {[%clk 01:29:01]} {[%emt 00:02:27]} 7. Nb3 {[%clk 01:16:28]}
{[%emt 00:00:33]} Bg7 {[%clk 01:29:06]} {[%emt 00:00:25]} 8. Bd2 {[%clk
01:16:07]} {[%emt 00:00:51]} O-O {[%clk 01:29:17]} {[%emt 00:00:18]} 9. Qc1
{[%clk 01:16:20]} {[%emt 00:00:18]} Re8 {[%clk 01:24:44]} {[%emt 00:05:01]} 10.
Bb5 {[%clk 01:16:04]} {[%emt 00:00:47]} Bd7 {[%clk 01:23:39]} {[%emt 00:01:35]}
11. Bxc6 {[%emt 00:01:21]} Bxc6 {[%clk 01:23:21]} 12. O-O {[%clk 01:16:22]}
{[%emt 00:00:09]} Ne4 {[%clk 01:18:30]} {[%emt 00:05:21]} 13. Re1 {[%clk
01:08:54]} {[%emt 00:07:59]} Rc8 {[%clk 01:15:44]} {[%emt 00:03:16]} 14. Bh6
{[%clk 01:05:57]} {[%emt 00:03:27]} Qd6 {[%clk 01:02:52]} {[%emt 00:13:20]} 15.
Qf4 {[%clk 00:51:08]} {[%emt 00:15:20]} 1/2-1/2

[Event "2. Itzehoer Schach Open"]
[Site "Itzehoe, Germany"]
[Date "2023.04.30"]
[Round "3.6"]
[White "Lichtmannecker, Daniel"]
[Black "Fuhrmann, Bahne"]
[Result "1/2-1/2"]
[TimeControl "90 min / 40 Züge + 30 min + 30 Sek pro Zug"]
[WhiteElo "2162"]
[BlackElo "2035"]

1. e4 {[%clk 01:22:27]} {[%emt 00:08:33]} e5 {[%clk 01:30:53]} {[%emt
00:00:07]} 2. Nf3 {[%clk 01:22:52]} {[%emt 00:00:05]} Nc6 {[%clk 01:31:19]}
{[%emt 00:00:04]} 3. Bb5 {[%clk 01:23:13]} {[%emt 00:00:08]} a6 {[%clk
01:31:45]} {[%emt 00:00:04]} 4. Ba4 {[%clk 01:23:32]} {[%emt 00:00:11]} Nf6
{[%clk 01:32:11]} {[%emt 00:00:05]} 5. O-O {[%clk 01:23:43]} {[%emt 00:00:18]}
Nxe4 {[%clk 01:32:36]} {[%emt 00:00:05]} 6. d4 {[%clk 01:18:56]} {[%emt
00:05:18]} Be7 {[%clk 01:32:44]} {[%emt 00:00:22]} 7. Re1 {[%clk 01:13:35]}
{[%emt 00:05:51]} b5 {[%clk 01:33:07]} {[%emt 00:00:07]} 8. Bb3 {[%clk
01:11:26]} {[%emt 00:02:39]} d5 {[%clk 01:32:57]} {[%emt 00:00:39]} 9. dxe5
{[%clk 01:10:59]} {[%emt 00:00:58]} Be6 {[%clk 01:33:18]} {[%emt 00:00:07]} 10.
c3 {[%clk 01:09:35]} {[%emt 00:01:55]} Nc5 {[%clk 01:31:43]} {[%emt 00:02:05]}
11. Bc2 {[%clk 01:09:11]} {[%emt 00:00:55]} O-O {[%clk 01:31:58]} {[%emt
00:00:15]} 12. Nd4 {[%clk 00:57:43]} {[%emt 00:11:59]} Qd7 {[%clk 01:31:35]}
{[%emt 00:00:53]} 13. Nd2 {[%clk 00:55:20]} {[%emt 00:02:53]} f5 {[%clk
01:25:39]} {[%emt 00:06:25]} 14. N2f3 {[%clk 00:50:37]} {[%emt 00:05:12]} Ne4
{[%clk 01:24:39]} {[%emt 00:01:31]} 15. Nxc6 {[%clk 00:32:51]} {[%emt
00:18:15]} Qxc6 {[%clk 01:24:46]} {[%emt 00:00:23]} 16. a4 {[%clk 00:31:05]}
{[%emt 00:02:17]} Qd7 {[%clk 01:13:39]} {[%emt 00:11:37]} 17. Nd4 {[%clk
00:22:44]} {[%emt 00:08:51]} c5 {[%clk 01:11:24]} {[%emt 00:02:45]} 18. Nxe6
{[%clk 00:22:24]} {[%emt 00:00:49]} Qxe6 {[%clk 01:11:49]} {[%emt 00:00:05]} 19.
f3 {[%clk 00:22:42]} {[%emt 00:00:13]} Ng5 {[%clk 01:09:24]} {[%emt 00:02:55]}
20. axb5 {[%clk 00:19:10]} {[%emt 00:04:02]} axb5 {[%clk 01:09:39]} {[%emt
00:00:15]} 21. Rxa8 {[%clk 00:19:21]} {[%emt 00:00:19]} Rxa8 {[%clk 01:10:02]}
{[%emt 00:00:07]} 22. Bxg5 {[%clk 00:19:26]} {[%emt 00:00:25]} Bxg5 {[%clk
01:10:21]} {[%emt 00:00:10]} 23. Qd3 {[%clk 00:19:40]} {[%emt 00:00:17]} Kf7
{[%clk 00:55:34]} {[%emt 00:15:17]} 24. Qxb5 {[%clk 00:18:39]} {[%emt
00:01:30]} Be7 {[%clk 00:55:55]} {[%emt 00:00:09]} 25. f4 {[%clk 00:15:02]}
{[%emt 00:04:08]} Ra6 {[%clk 00:51:54]} {[%emt 00:04:32]} 26. Bxf5 {[%clk
00:12:58]} {[%emt 00:02:34]} Qb6 {[%clk 00:51:00]} {[%emt 00:01:24]} 27. Qd7
{[%clk 00:09:44]} {[%emt 00:03:43]} Qc6 {[%clk 00:45:27]} {[%emt 00:06:03]} 28.
Rd1 {[%clk 00:05:43]} {[%emt 00:04:32]} d4 {[%clk 00:45:51]} {[%emt 00:00:06]}
29. Qxc6 {[%clk 00:04:52]} {[%emt 00:01:21]} Rxc6 {[%clk 00:46:16]} {[%emt
00:00:04]} 30. Kf1 {[%clk 00:03:42]} {[%emt 00:01:40]} Rb6 {[%clk 00:45:05]}
{[%emt 00:01:42]} 31. cxd4 {[%clk 00:03:28]} {[%emt 00:00:44]} cxd4 {[%clk
00:45:30]} {[%emt 00:00:05]} 32. Rd2 {[%clk 00:03:19]} {[%emt 00:00:39]} g6
{[%clk 00:45:03]} {[%emt 00:00:57]} 33. Bd3 {[%clk 00:03:02]} {[%emt 00:00:46]}
Ke6 {[%clk 00:45:24]} {[%emt 00:00:09]} 34. Ke2 {[%clk 00:02:12]} {[%emt
00:01:21]} Kd5 {[%clk 00:45:50]} {[%emt 00:00:04]} 35. Rc2 {[%clk 00:01:47]}
{[%emt 00:00:55]} g5 {[%clk 00:45:48]} {[%emt 00:00:32]} 36. g3 {[%clk
00:02:03]} {[%emt 00:00:14]} gxf4 {[%clk 00:45:55]} {[%emt 00:00:23]} 37. gxf4
{[%clk 00:02:31]} {[%emt 00:00:02]} Rh6 {[%clk 00:46:19]} {[%emt 00:00:05]} 38.
Kf1 {[%clk 00:01:23]} {[%emt 00:01:37]} Rh3 {[%clk 00:46:38]} {[%emt 00:00:12]}
39. Be2 {[%clk 00:01:04]} {[%emt 00:00:50]} d3 {[%clk 00:46:21]} {[%emt
00:00:47]} 40. Rd2 {[%clk 00:01:10]} {[%emt 00:00:24]} Ke4 {[%clk 00:43:18]}
{[%emt 00:03:33]} 41. Kg2 {[%clk 00:19:18]} {[%emt 00:12:22]} dxe2 {[%clk
01:02:17]} {[%emt 00:11:31]} 42. Rxe2+ {[%clk 00:19:24]} {[%emt 00:00:24]} Re3
{[%clk 01:02:43]} {[%emt 00:00:04]} 43. Rxe3+ {[%clk 00:19:31]} {[%emt
00:00:23]} Kxe3 {[%clk 01:03:09]} {[%emt 00:00:04]} 44. Kg3 {[%clk 00:17:55]}
{[%emt 00:02:06]} Ke4 {[%clk 01:03:32]} {[%emt 00:00:06]} 45. Kg4 {[%clk
00:18:19]} {[%emt 00:00:06]} h5 {[%clk 01:03:35]} {[%emt 00:00:28]} 46. Kxh5
{[%clk 00:18:23]} {[%emt 00:00:26]} Kxf4 {[%clk 01:04:00]} {[%emt 00:00:04]} 47.
Kg6 {[%clk 00:18:17]} {[%emt 00:00:37]} Kxe5 {[%clk 01:04:25]} {[%emt
00:00:05]} 48. b4 {[%clk 00:18:41]} {[%emt 00:00:05]} Bxb4 {[%clk 01:04:50]}
{[%emt 00:00:05]} 49. h4 {[%clk 00:19:08]} {[%emt 00:00:03]} Bd2 {[%clk
01:05:15]} {[%emt 00:00:06]} 50. h5 {[%clk 00:19:33]} {[%emt 00:00:05]} Bc1
{[%clk 01:05:41]} {[%emt 00:00:04]} 51. Kg7 {[%clk 00:19:58]} {[%emt 00:00:04]}
Kd4 {[%clk 01:06:01]} {[%emt 00:00:10]} 52. h6 {[%clk 00:20:25]} {[%emt
00:00:04]} Bxh6+ {[%clk 01:05:54]} {[%emt 00:00:06]} 1/2-1/2

[Event "2. Itzehoer Schach Open"]
[Site "Itzehoe, Germany"]
[Date "2023.04.30"]
[Round "3.15"]
[White "Freitag, Christian"]
[Black "Wusterack, Paul"]
[Result "1-0"]
[TimeControl "90 min / 40 Züge + 30 min + 30 Sek pro Zug"]
[WhiteElo "1886"]
[BlackElo "1647"]

1. e4 {[%clk 01:30:55]} {[%emt 00:00:04]} e6 {[%clk 01:28:40]} {[%emt
00:02:22]} 2. d4 {[%clk 01:31:14]} {[%emt 00:00:10]} d5 {[%clk 01:26:13]}
{[%emt 00:02:58]} 3. Nc3 {[%clk 01:31:37]} {[%emt 00:00:06]} Nf6 {[%clk
01:26:38]} {[%emt 00:00:05]} 4. Bg5 {[%clk 01:31:33]} {[%emt 00:00:34]} Be7
{[%clk 01:27:01]} {[%emt 00:00:07]} 5. e5 {[%clk 01:31:41]} {[%emt 00:00:20]}
Nfd7 {[%clk 01:27:25]} {[%emt 00:00:08]} 6. Bxe7 {[%clk 01:32:02]} {[%emt
00:00:08]} Qxe7 {[%clk 01:27:46]} {[%emt 00:00:09]} 7. f4 {[%clk 01:32:07]}
{[%emt 00:00:24]} a6 {[%clk 01:28:01]} {[%emt 00:00:17]} 8. Nf3 {[%clk
01:31:45]} {[%emt 00:00:51]} c5 {[%clk 01:28:24]} {[%emt 00:00:09]} 9. Ne2
{[%clk 01:27:31]} {[%emt 00:04:43]} Nc6 {[%clk 01:28:33]} {[%emt 00:00:21]} 10.
c3 {[%clk 01:27:46]} {[%emt 00:00:15]} O-O {[%clk 01:18:24]} {[%emt 00:10:39]}
11. Ng3 {[%clk 01:26:20]} {[%emt 00:01:55]} f6 {[%clk 01:14:36]} {[%emt
00:04:19]} 12. Be2 {[%clk 01:19:12]} {[%emt 00:07:37]} fxe5 {[%clk 01:12:06]}
{[%emt 00:03:01]} 13. fxe5 {[%clk 01:18:50]} {[%emt 00:00:52]} cxd4 {[%clk
01:10:09]} {[%emt 00:02:27]} 14. cxd4 {[%clk 01:17:57]} {[%emt 00:01:22]} Rxf3
{[%clk 00:39:08]} {[%emt 00:31:32]} 15. gxf3 {[%clk 01:08:41]} {[%emt
00:09:45]} Qb4+ {[%clk 00:39:30]} {[%emt 00:00:08]} 16. Qd2 {[%clk 01:09:05]}
{[%emt 00:00:06]} Qxd4 {[%clk 00:39:52]} {[%emt 00:00:09]} 17. f4 {[%clk
01:04:32]} {[%emt 00:05:02]} g5 {[%clk 00:33:44]} {[%emt 00:06:39]} 18. fxg5
{[%clk 00:56:35]} {[%emt 00:08:26]} Ndxe5 {[%clk 00:31:22]} {[%emt 00:02:53]}
19. Qxd4 {[%clk 00:52:15]} {[%emt 00:04:49]} Nxd4 {[%clk 00:31:50]} {[%emt
00:00:03]} 20. O-O-O {[%clk 00:51:46]} {[%emt 00:00:59]} Nxe2+ {[%clk
00:29:53]} {[%emt 00:02:27]} 21. Nxe2 {[%clk 00:51:46]} {[%emt 00:00:29]} Bd7
{[%clk 00:27:08]} {[%emt 00:03:15]} 22. Nf4 {[%clk 00:44:04]} {[%emt 00:08:11]}
Rf8 {[%clk 00:17:26]} {[%emt 00:10:13]} 23. Nh5 {[%clk 00:39:54]} {[%emt
00:04:40]} Bb5 {[%clk 00:15:23]} {[%emt 00:02:33]} 24. Nf6+ {[%clk 00:34:32]}
{[%emt 00:05:51]} Kg7 {[%clk 00:12:50]} {[%emt 00:03:05]} 25. Kb1 {[%clk
00:33:32]} {[%emt 00:01:29]} Bd3+ {[%clk 00:11:38]} {[%emt 00:01:43]} 26. Ka1
{[%clk 00:33:21]} {[%emt 00:00:41]} Rxf6 {[%clk 00:10:23]} {[%emt 00:01:45]} 27.
gxf6+ {[%clk 00:33:28]} {[%emt 00:00:22]} Kxf6 {[%clk 00:10:52]} {[%emt
00:00:01]} 28. Rhe1 {[%clk 00:25:00]} {[%emt 00:08:58]} Be4 {[%clk 00:08:17]}
{[%emt 00:03:05]} 29. b3 {[%clk 00:24:25]} {[%emt 00:01:05]} Nf3 {[%clk
00:06:46]} {[%emt 00:02:00]} 30. Re2 {[%clk 00:17:17]} {[%emt 00:07:39]} Kf5
{[%clk 00:06:33]} {[%emt 00:00:43]} 31. Kb2 {[%clk 00:16:46]} {[%emt 00:01:02]}
d4 {[%clk 00:06:02]} {[%emt 00:01:01]} 32. Kc1 {[%clk 00:15:47]} {[%emt
00:01:28]} e5 {[%clk 00:06:15]} {[%emt 00:00:17]} 33. Rf2 {[%clk 00:09:34]}
{[%emt 00:06:43]} Kf4 {[%clk 00:06:20]} {[%emt 00:00:24]} 34. Rdf1 {[%clk
00:09:09]} {[%emt 00:00:56]} Ke3 {[%clk 00:04:37]} {[%emt 00:02:13]} 35. Kd1
{[%clk 00:08:13]} {[%emt 00:01:26]} Bc6 {[%clk 00:04:18]} {[%emt 00:00:50]} 36.
Rb2 {[%clk 00:02:36]} {[%emt 00:06:06]} d3 {[%clk 00:03:22]} {[%emt 00:01:26]}
37. Rff2 {[%clk 00:01:31]} {[%emt 00:01:36]} e4 {[%clk 00:03:31]} {[%emt
00:00:21]} 38. Rg2 {[%clk 00:01:44]} {[%emt 00:00:16]} Kd4 {[%clk 00:03:00]}
{[%emt 00:01:01]} 39. Rg4 {[%clk 00:01:06]} {[%emt 00:01:08]} Kc3 {[%clk
00:02:21]} {[%emt 00:01:10]} 40. Rf2 {[%clk 00:00:46]} {[%emt 00:00:49]} d2
{[%clk 00:01:51]} {[%emt 00:01:00]} 41. Rg3 {[%clk 00:24:41]} {[%emt 00:06:34]}
Kd4 {[%clk 00:23:57]} {[%emt 00:08:26]} 42. Rxd2+ {[%clk 00:21:10]} {[%emt
00:04:00]} Nxd2 {[%clk 00:21:47]} {[%emt 00:02:41]} 43. Kxd2 {[%clk 00:21:32]}
{[%emt 00:00:08]} b6 {[%clk 00:06:36]} {[%emt 00:15:41]} 44. Rh3 {[%clk
00:21:33]} {[%emt 00:00:28]} e3+ {[%clk 00:06:52]} {[%emt 00:00:15]} 45. Rxe3
{[%clk 00:21:29]} {[%emt 00:00:33]} Be4 {[%clk 00:07:13]} {[%emt 00:00:09]} 46.
Rg3 {[%clk 00:20:10]} {[%emt 00:01:48]} Bg6 {[%clk 00:06:37]} {[%emt 00:01:07]}
47. Rg4+ {[%clk 00:20:28]} {[%emt 00:00:11]} Kd5 {[%clk 00:06:39]} {[%emt
00:00:29]} 48. Kc3 {[%clk 00:19:44]} {[%emt 00:01:14]} a5 {[%clk 00:03:52]}
{[%emt 00:03:17]} 49. a3 {[%clk 00:19:42]} {[%emt 00:00:32]} Kc5 {[%clk
00:03:38]} {[%emt 00:00:44]} 50. Rg5+ {[%clk 00:19:24]} {[%emt 00:00:47]} Kc6
{[%clk 00:03:38]} {[%emt 00:00:31]} 51. h4 {[%clk 00:19:48]} {[%emt 00:00:07]}
Bb1 {[%clk 00:03:35]} {[%emt 00:00:33]} 52. Rh5 {[%clk 00:19:20]} {[%emt
00:00:57]} Bg6 {[%clk 00:03:26]} {[%emt 00:00:39]} 53. Rh6 {[%clk 00:14:56]}
{[%emt 00:04:54]} Kc5 {[%clk 00:03:40]} {[%emt 00:00:17]} 54. h5 {[%clk
00:15:17]} {[%emt 00:00:07]} Be4 {[%clk 00:03:33]} {[%emt 00:00:37]} 55. Rf6
{[%clk 00:15:16]} {[%emt 00:00:32]} b5 {[%clk 00:03:02]} {[%emt 00:01:02]} 56.
b4+ {[%clk 00:14:42]} {[%emt 00:01:03]} axb4+ {[%clk 00:03:20]} {[%emt
00:00:13]} 57. axb4+ {[%clk 00:15:08]} {[%emt 00:00:04]} Kd5 {[%clk 00:03:44]}
{[%emt 00:00:05]} 58. Rb6 {[%clk 00:15:04]} {[%emt 00:00:33]} Bf3 {[%clk
00:04:02]} {[%emt 00:00:14]} 1-0

[Event "2. Itzehoer Schach Open"]
[Site "Itzehoe, Germany"]
[Date "2023.04.30"]
[Round "3.5"]
[White "Fuhrmann, Åke"]
[Black "Wulf von Moers, Jens"]
[Result "0-1"]
[TimeControl "90 min / 40 Züge + 30 min + 30 Sek pro Zug"]
[WhiteElo "1992"]
[BlackElo "2148"]

1. d4 {[%clk 01:28:24]} {[%emt 00:02:35]} d5 {[%clk 01:30:42]} {[%emt
00:00:18]} 2. c4 {[%clk 01:28:47]} {[%emt 00:00:07]} e6 {[%clk 01:31:07]}
{[%emt 00:00:05]} 3. Nf3 {[%clk 01:29:13]} {[%emt 00:00:05]} c5 {[%clk
01:30:58]} {[%emt 00:00:39]} 4. cxd5 {[%clk 01:29:33]} {[%emt 00:00:10]} exd5
{[%clk 01:31:21]} {[%emt 00:00:07]} 5. g3 {[%clk 01:29:58]} {[%emt 00:00:05]}
Nc6 {[%clk 01:31:37]} {[%emt 00:00:13]} 6. Bg2 {[%clk 01:30:20]} {[%emt
00:00:07]} Nf6 {[%clk 01:31:55]} {[%emt 00:00:13]} 7. O-O {[%clk 01:30:17]}
{[%emt 00:00:34]} Be7 {[%clk 01:31:56]} {[%emt 00:00:29]} 8. dxc5 {[%clk
01:30:20]} {[%emt 00:00:28]} Bxc5 {[%clk 01:31:13]} {[%emt 00:01:11]} 9. a3
{[%clk 01:30:42]} {[%emt 00:00:08]} O-O {[%clk 01:18:23]} {[%emt 00:13:20]} 10.
b4 {[%clk 01:30:57]} {[%emt 00:00:16]} Be7 {[%clk 01:18:15]} {[%emt 00:00:38]}
11. Bb2 {[%clk 01:26:47]} {[%emt 00:04:40]} Ne4 {[%clk 01:14:51]} {[%emt
00:03:53]} 12. Nbd2 {[%clk 01:14:33]} {[%emt 00:12:44]} Bf6 {[%clk 01:12:53]}
{[%emt 00:02:28]} 13. Bxf6 {[%clk 01:14:54]} {[%emt 00:00:10]} Qxf6 {[%clk
01:13:19]} {[%emt 00:00:04]} 14. Nb3 {[%clk 01:12:47]} {[%emt 00:02:36]} Bg4
{[%clk 01:08:34]} {[%emt 00:05:15]} 15. h3 {[%clk 00:58:25]} {[%emt 00:14:52]}
Be6 {[%clk 01:05:03]} {[%emt 00:04:01]} 16. Nfd4 {[%clk 00:57:40]} {[%emt
00:01:16]} Nc3 {[%emt 00:06:10]} 0-1